bitfinex/quotes_SOLUSD_20240916
["timestamp","ask_amount","ask_price","bid_price","bid_amount"]
[1726495294456,50.0,132.51,132.5,18.8671]
[1726495294967,50.0,132.49,132.48,7.5482]
[1726495295256,50.0,132.49,132.47,26.4199]
[1726495295654,50.0,132.47,132.45,0.4685761]
[1726495295969,57.5489,132.47,132.45,0.4685761]
[1726495296465,50.0,132.47,132.45,0.4685761]
[1726495297933,57.5489,132.47,132.45,0.4685761]
[1726495298156,57.5489,132.47,132.41,18.8798]
[1726495298157,50.0,132.43,132.41,26.4319]
[1726495300642,50.0,132.41,132.39,7.5531]
[1726495300963,50.0,132.41,132.4,7.5528]
[1726495301175,50.0,132.41,132.39,7.5534]
[1726495302237,50.0,132.41,132.4,7.5528]
[1726495304071,50.0,132.43,132.42,7.5517]
[1726495304662,50.0,132.45,132.42,7.5517]
[1726495304860,50.0,132.45,132.43,7.5511]
[1726495306066,50.0,132.45,132.43,7.551]
[1726495308262,50.0,132.43,132.42,26.43]
[1726495308446,50.0,132.43,132.42,18.8784]
[1726495308660,50.0,132.43,132.42,26.4301]
[1726495308965,50.0,132.45,132.42,18.8784]
[1726495309159,50.0,132.45,132.42,26.43]
[1726495309547,50.0,132.43,132.42,18.8784]
[1726495309943,50.0,132.43,132.42,26.4301]
[1726495310802,50.0,132.45,132.42,26.4301]
[1726495311652,50.0,132.45,132.43,7.5511]
[1726495312866,50.0,132.45,132.42,26.4299]
[1726495314680,50.0,132.45,132.43,7.5508]
[1726495315681,50.0,132.43,132.4,7.5524]
[1726495316065,17.15750521,132.48,132.4,7.5524]
[1726495316066,50.0,132.41,132.4,7.5524]
[1726495316586,50.0,132.41,132.39,26.4358]
[1726495318171,50.0,132.41,132.4,7.5528]
[1726495320267,50.0,132.43,132.42,7.5517]
[1726495320464,50.0,132.43,132.41,26.4325]
[1726495320664,50.0,132.41,132.38,19.3189647]
[1726495320866,50.0,132.43,132.38,19.3189647]
[1726495321386,50.0,132.4,132.39,7.5532]
[1726495322488,50.0,132.42,132.4,7.5526]
[1726495323101,50.0,132.4,132.39,7.5533]
[1726495323470,50.0,132.4,132.38,26.8727647]
[1726495323979,50.0,132.4,132.39,7.5534]
[1726495325059,50.0,132.4,132.38,26.8727647]
[1726495326274,50.0,132.4,132.38,0.4349647]
[1726495326522,50.0,132.4,132.38,7.9888647]
[1726495327475,50.0,132.4,132.39,7.5534]
[1726495328375,50.0,132.4,132.38,0.4349647]
[1726495329067,57.5529,132.4,132.38,0.4349647]
[1726495329272,50.0,132.4,132.38,0.4349647]
[1726495329678,57.553,132.4,132.38,0.4349647]
[1726495329871,50.0,132.4,132.38,0.4349647]
[1726495330565,50.0,132.4,132.38,7.9888647]
[1726495331161,50.0,132.4,132.39,7.5534]
[1726495332305,50.0,132.4,132.38,7.9887647]
[1726495332587,50.0,132.4,132.39,7.5534]
[1726495333033,50.0,132.4,132.38,7.9887647]
[1726495333165,50.0,132.4,132.38,0.4349647]
[1726495333693,27.5534,132.39,132.38,0.4349647]
[1726495333892,50.0,132.35,132.33,0.3094753]
[1726495334068,50.0,132.35,132.33,0.3915578]
[1726495335098,50.0,132.35,132.33,7.9481578]
[1726495335385,50.0,132.35,132.33,0.3915578]
[1726495335567,50.0,132.35,132.33,7.9482578]
[1726495337776,50.0,132.37,132.36,7.5551]
[1726495338181,50.0,132.37,132.36,18.8878]
[1726495338791,50.0,132.37,132.36,26.4429]
[1726495339164,50.0,132.37,132.33,19.2831578]
[1726495339362,16.2795,132.4,132.33,19.2831578]
[1726495339363,50.0,132.35,132.33,26.8394578]
[1726495339669,50.0,132.35,132.33,0.3915578]
[1726495341491,50.0,132.35,132.33,7.9481578]
[1726495341871,50.0,132.35,132.33,0.3915578]
[1726495342074,50.0,132.35,132.33,7.9481578]
[1726495344389,50.0,132.35,132.33,0.3915578]
[1726495344603,20.0,132.34,132.33,0.3915578]
[1726495344987,27.5562,132.34,132.33,0.3915578]
[1726495345887,50.0,132.3,132.29,18.897]
[1726495346112,50.0,132.3,132.29,26.4561]
[1726495347201,50.0,132.3,132.29,18.897]
[1726495347906,50.0,132.3,132.28,0.3094753]
[1726495348516,20.0,132.29,132.28,0.3094753]
[1726495350611,20.0,132.29,132.28,7.8691753]
[1726495350814,50.0,132.3,132.29,7.5591]
[1726495351586,50.0,132.3,132.28,19.2075753]
[1726495351587,50.0,132.3,132.28,26.7671753]
[1726495351795,50.0,132.3,132.28,19.2075753]
[1726495352192,50.0,132.3,132.28,0.3094753]
[1726495352899,20.0,132.29,132.28,0.3094753]
[1726495353211,50.0,132.26,132.25,26.4641]
[1726495353793,50.0,132.26,132.25,18.9029]
[1726495354112,50.0,132.26,132.25,26.4643]
[1726495356013,50.0,132.26,132.25,18.9029]
[1726495356509,70.0,132.26,132.25,18.9029]
[1726495357016,50.0,132.24,132.23,7.5624]
[1726495357815,50.0,132.24,132.22,26.47]
[1726495357994,20.0,132.23,132.22,18.9071]
[1726495358335,70.0,132.22,132.21,0.3805155]
[1726495361011,70.0,132.22,132.21,7.9442155]
[1726495362024,70.0,132.22,132.21,0.3805155]
[1726495362192,70.0,132.22,132.21,7.9442155]
[1726495363117,50.0,132.24,132.23,7.5625]
[1726495363314,50.0,132.26,132.25,7.5614]
[1726495364095,50.0,132.26,132.25,26.4649]
[1726495364718,50.0,132.26,132.21,0.3805155]
[1726495364719,50.0,132.24,132.23,7.562]
[1726495367222,50.0,132.24,132.22,18.9076]
[1726495367707,50.0,132.24,132.22,26.4706]
[1726495368801,50.0,132.24,132.23,7.5625]
[1726495369021,70.0,132.24,132.23,7.5625]
[1726495369751,70.0,132.24,132.22,26.4706]
[1726495370023,70.0,132.24,132.23,7.5625]
[1726495370927,70.0,132.24,132.22,26.4706]
[1726495372026,70.0,132.24,132.23,7.5625]
[1726495374430,20.0,132.23,132.22,18.9076]
[1726495375330,50.0,132.22,132.21,7.9440155]
[1726495378932,50.0,132.24,132.22,18.9078]
[1726495379424,20.0,132.25,132.24,18.9037]
[1726495379634,50.0,132.26,132.24,18.9037]
[1726495379941,50.0,132.26,132.25,7.5614]
[1726495380421,50.0,132.26,132.24,26.4656]
[1726495381118,50.0,132.26,132.25,7.5614]
[1726495381506,70.0,132.26,132.25,7.5614]
[1726495382353,20.0,132.25,132.24,18.9037]
[1726495382536,50.0,132.24,132.23,7.562]
[1726495383165,50.0,132.22,132.21,19.2886155]
[1726495383301,70.0,132.22,132.21,26.8521155]
[1726495384324,50.0,132.22,132.21,26.8521155]
[1726495385111,50.0,132.22,132.21,19.2886155]
[1726495385319,50.0,132.22,132.21,0.3805155]
[1726495385320,70.0,132.22,132.21,0.3805155]
[1726495386334,70.0,132.22,132.21,7.9442155]
[1726495386723,70.0,132.22,132.21,0.3805155]
[1726495388554,77.5631,132.22,132.21,0.3805155]
[1726495388722,50.0,132.18,132.17,26.4797]
[1726495388923,50.0,132.16,132.14,18.9186]
[1726495389134,50.0,132.16,132.15,8.0128667]
[1726495389741,50.0,132.2,132.19,7.5648]
[1726495389942,70.0,132.2,132.19,7.5648]
[1726495390451,50.0,132.2,132.19,7.5648]
[1726495390617,50.0,132.22,132.2,18.9095]
[1726495390829,50.0,132.22,132.2,26.4737]
[1726495391322,50.0,132.18,132.17,26.4803]
[1726495392417,70.0,132.18,132.17,18.9143]
[1726495393825,70.0,132.18,132.17,26.4803]
[1726495394029,50.0,132.2,132.19,7.5648]
[1726495394443,50.0,132.18,132.17,18.9143]
[1726495394633,50.0,132.18,132.17,26.4803]
[1726495394822,50.0,132.2,132.17,18.9143]
[1726495395075,50.0,132.2,132.19,7.5648]
[1726495396038,50.0,132.2,132.18,7.5653]
[1726495396430,50.0,132.2,132.17,18.9143]
[1726495396431,50.0,132.18,132.17,26.4802]
[1726495397324,70.0,132.18,132.17,18.9143]
[1726495397541,50.0,132.16,132.15,0.4457667]
[1726495397829,50.0,132.16,132.15,8.0128667]
[1726495399054,50.0,132.16,132.1,16.1524]
[1726495399055,50.0,132.14,132.08,0.4457667]
[1726495399233,20.0,132.11,132.08,0.4457667]
[1726495399441,20.0,132.11,132.08,19.3729667]
[1726495399442,50.0,132.09,132.08,19.3729667]
[1726495399629,50.0,132.09,132.08,26.9440667]
[1726495399831,50.0,132.14,132.11,18.923]
[1726495400143,50.0,132.14,132.13,7.5683]
[1726495400849,50.0,132.14,132.12,7.5688]
[1726495401051,50.0,132.14,132.13,7.5683]
[1726495402278,50.0,132.16,132.15,7.5671]
[1726495405545,22.3048,132.22,132.17,7.566]
[1726495405546,50.0,132.18,132.17,7.566]
[1726495406155,50.0,132.2,132.19,26.4769]
[1726495406966,50.0,132.18,132.16,7.5665]
[1726495407338,50.0,132.16,132.15,26.4845]
[1726495407657,50.0,132.16,132.15,18.9175]
[1726495408757,70.0,132.16,132.15,18.9175]
[1726495410253,50.0,132.16,132.15,26.4846]
[1726495410652,50.0,132.18,132.15,18.9175]
[1726495410948,50.0,132.2,132.17,18.9137]
[1726495411160,50.0,132.2,132.19,7.5648]
[1726495411461,50.0,132.22,132.21,7.5637]
[1726495411847,50.0,132.24,132.23,26.4689]
[1726495413365,50.0,132.24,132.23,18.9064]
[1726495413565,50.0,132.22,132.21,7.5636]
[1726495413864,50.0,132.22,132.2,26.4749]
[1726495414262,50.0,132.22,132.2,18.9107]
[1726495414446,20.0,132.21,132.2,18.9107]
[1726495415279,20.0,132.21,132.2,26.4749]
[1726495415681,20.0,132.21,132.2,18.9107]
[1726495416044,50.0,132.22,132.2,18.9107]
[1726495416766,70.0,132.22,132.21,7.5637]
[1726495416971,50.0,132.22,132.21,7.5637]
[1726495417548,50.0,132.22,132.19,7.5643]
[1726495417744,50.0,132.2,132.19,7.5643]
[1726495418670,50.0,132.2,132.18,7.5653]
[1726495419448,50.0,132.2,132.19,7.5648]
[1726495420750,50.0,132.25,132.24,7.562]
[1726495422575,50.0,132.23,132.2,18.9104]
[1726495422871,50.0,132.23,132.22,7.5631]
[1726495428279,50.0,132.21,132.2,26.4744]
[1726495431683,29.2672,132.27,132.2,26.4744]
[1726495431684,50.0,132.23,132.22,7.5631]
[1726495431984,70.0,132.23,132.22,7.5631]
[1726495433584,70.0,132.23,132.2,26.4746]
[1726495433585,50.0,132.21,132.2,26.4746]
[1726495435289,50.0,132.23,132.22,7.5631]
[1726495435708,50.0,132.25,132.24,26.467]
[1726495435980,70.0,132.25,132.24,26.467]
[1726495436432,50.0,132.25,132.24,26.467]
[1726495437487,50.2777825,132.28,132.27,26.4609]
[1726495441068,50.0,132.26,132.24,18.9048]
[1726495441871,50.0,132.26,132.25,7.5614]
[1726495444929,50.2777825,132.28,132.27,26.4609]
[1726495446194,0.2777825,132.28,132.27,64.2623]
[1726495446574,0.2777825,132.28,132.27,70.4405]
[1726495451700,50.2777825,132.28,132.27,26.4609]
[1726495457195,50.0,132.25,132.24,18.904]
[1726495457778,50.0,132.25,132.24,26.466]
[1726495458404,70.0,132.27,132.26,7.5608]
[1726495459097,0.2777825,132.28,132.27,26.4609]
[1726495463910,50.2777825,132.28,132.27,26.4609]
[1726495464085,0.2777825,132.28,132.27,26.4609]
[1726495468595,0.2777825,132.28,132.27,27.97112489]
[1726495468799,0.2777825,132.28,132.27,26.4609]
[1726495476609,50.0,132.31,132.27,26.4609]
[1726495476785,50.0,132.31,132.3,26.4549]
[1726495476987,50.5973777,132.31,132.3,26.4549]
[1726495484098,0.5973777,132.31,132.3,26.4549]
[1726495484306,50.5973777,132.31,132.3,26.4549]
[1726495484958,50.5973777,132.31,132.27,18.8998]
[1726495484959,50.0,132.29,132.27,18.8998]
[1726495485401,50.0,132.29,132.28,7.5595]
[1726495485818,0.2578488,132.3,132.29,7.5591]
[1726495491608,50.0,132.28,132.27,18.8998]
[1726495491928,70.3395289,132.28,132.27,18.8998]
[1726495494756,70.3395289,132.28,132.27,26.46]
[1726495496002,50.3395289,132.28,132.27,26.46]
[1726495496412,0.3395289,132.28,132.27,26.46]
[1726495500780,0.3395289,132.28,132.27,27.36954063]
[1726495501127,0.3395289,132.28,132.27,26.46]
[1726495503413,50.0,132.25,132.24,18.9041]
[1726495503832,50.0,132.25,132.24,26.4661]
[1726495504834,50.0,132.27,132.26,7.5608]
[1726495506613,0.3395289,132.28,132.27,26.4609]
[1726495509579,0.3395289,132.28,132.27,64.2623]
[1726495509934,0.3395289,132.28,132.27,26.4609]
[1726495512330,0.3395289,132.28,132.27,18.9007]
[1726495512526,0.3395289,132.28,132.26,7.5607]
[1726495512527,50.0,132.27,132.26,7.5607]
[1726495512927,50.0,132.27,132.25,7.5612]
[1726495514027,50.0,132.25,132.24,26.466]
[1726495514232,50.0,132.25,132.23,7.5624]
[1726495514946,50.0,132.23,132.21,18.9084]
[1726495515248,50.0,132.23,132.22,7.5631]
[1726495515827,50.0,132.25,132.24,26.467]
[1726495516321,50.0,132.27,132.26,7.5608]
[1726495517229,0.3395289,132.28,132.27,26.4609]
[1726495521646,0.3395289,132.28,132.27,18.9007]
[1726495522349,0.3395289,132.28,132.27,26.4609]
[1726495528271,50.0,132.25,132.24,18.9041]
[1726495529040,50.0,132.23,132.22,7.563]
[1726495529749,50.0,132.23,132.21,26.4722]
[1726495530163,50.0,132.21,132.2,7.5642]
[1726495530353,50.0,132.21,132.19,7.5648]
[1726495531536,50.0,132.19,132.18,18.9129]
[1726495531736,50.0,132.19,132.18,26.4783]
[1726495532875,50.0,132.19,132.18,18.9129]
[1726495533171,70.0,132.19,132.18,18.9129]
[1726495534246,50.0,132.19,132.18,18.9129]
[1726495534470,50.0,132.21,132.18,18.9129]
[1726495535347,70.0,132.21,132.2,7.5642]
[1726495535949,50.0,132.21,132.2,7.5642]
[1726495537077,50.0,132.21,132.18,18.9129]
[1726495537647,50.0,132.21,132.19,7.5647]
[1726495538761,70.0,132.21,132.2,7.5642]
[1726495542586,50.0,132.21,132.2,7.5642]
[1726495543355,50.0816801,132.23,132.22,7.5631]
[1726495543502,0.0816801,132.23,132.22,7.5631]
[1726495552075,8.01e-05,132.23,132.22,7.5631]
[1726495552274,0.2578488,132.27,132.22,7.5631]
[1726495552275,0.2578488,132.27,132.26,64.2672]
[1726495572892,0.2578488,132.27,132.26,26.4629]
[1726495573423,50.2578488,132.27,132.26,26.4629]
[1726495575287,50.2578488,132.27,132.25,7.5612]
[1726495575510,50.0,132.25,132.23,18.9057]
[1726495575908,20.0,132.24,132.23,18.9057]
[1726495576544,50.0,132.23,132.21,7.5637]
[1726495576716,50.0,132.21,132.2,7.5642]
[1726495580493,50.0,132.21,132.19,18.9107]
[1726495581018,50.0,132.21,132.19,26.475]
[1726495581513,70.0,132.21,132.2,7.5642]
[1726495582127,70.0,132.21,132.19,18.9107]
[1726495583092,50.0,132.19,132.13,16.5036488]
[1726495583649,20.0,132.21,132.13,0.2578488]
[1726495583650,50.0,132.15,132.13,0.2578488]
[1726495583791,50.0,132.15,132.13,7.8259488]
[1726495584006,20.0,132.14,132.13,0.2578488]
[1726495585296,20.0,132.14,132.09,26.7542488]
[1726495585297,50.0,132.1,132.09,26.7542488]
[1726495585619,50.0,132.1,132.09,19.1837488]
[1726495585991,50.0,132.12,132.09,19.1837488]
[1726495586393,50.0,132.12,132.11,7.5694]
[1726495586725,70.0,132.12,132.11,7.5694]
[1726495588013,50.0,132.12,132.11,7.5694]
[1726495589259,50.0,132.1,132.09,26.7542488]
[1726495589599,50.0,132.12,132.09,19.1837488]
[1726495589811,50.0,132.12,132.11,7.5694]
[1726495590113,70.0,132.12,132.11,7.5694]
[1726495591506,50.0,132.12,132.11,7.5694]
[1726495591722,50.0,132.14,132.13,7.5683]
[1726495592032,50.0,132.14,132.12,18.9216]
[1726495592333,50.0,132.14,132.12,26.49]
[1726495592564,50.0,132.14,132.13,7.5683]
[1726495593846,50.0,132.14,132.12,18.9216]
[1726495594001,50.0,132.12,132.11,7.5694]
[1726495597208,50.0,132.12,132.1,7.57]
[1726495597936,50.0,132.12,132.11,7.5694]
[1726495598435,50.0,132.12,132.1,7.57]
[1726495598599,50.0,132.12,132.11,7.5694]
[1726495599231,50.0,132.14,132.13,7.5683]
[1726495599447,50.0,132.16,132.1,59.3247]
[1726495599725,50.0,132.16,132.15,26.4849]
[1726495599931,50.0,132.14,132.1,59.3247]
[1726495600134,50.0,132.14,132.12,18.9214]
[1726495600716,50.0,132.13,132.09,0.2578488]
[1726495601224,50.0,132.13,132.12,7.5688]
[1726495601430,50.0,132.13,132.11,18.9227]
[1726495601613,50.0,132.11,132.1,7.5698]
[1726495603934,50.0,132.11,132.09,0.2578488]
[1726495604636,50.0,132.11,132.09,7.8283488]
[1726495604826,20.0,132.1,132.09,0.2578488]
[1726495606083,20.0,132.1,132.09,7.8283488]
[1726495606241,50.0,132.11,132.09,7.8283488]
[1726495606412,22.1485,132.15,132.05,38.1212488]
[1726495606413,50.0,132.07,132.05,38.1212488]
[1726495606618,50.0,132.07,132.06,18.93]
[1726495606810,70.0,132.07,132.05,7.8305488]
[1726495607021,70.0,132.07,132.05,0.2578488]
[1726495608311,23.8223,132.08,132.01,0.2578488]
[1726495608312,50.0,132.02,132.01,0.2578488]
[1726495608512,50.0,132.02,132.01,7.8329488]
[1726495609339,70.0,132.02,132.01,0.2578488]
[1726495611815,50.0,132.02,132.01,0.2578488]
[1726495612036,70.0,132.02,132.01,0.2578488]
[1726495612254,70.0,132.02,132.01,7.8329488]
[1726495612635,50.0,132.04,132.03,7.574]
[1726495612832,70.0,132.04,132.03,7.574]
[1726495613034,50.0,132.06,132.05,26.505]
[1726495617564,70.0,132.08,132.07,7.5717]
[1726495618543,50.0,132.04,132.02,18.9356]
[1726495619065,50.0,132.04,132.03,7.574]
[1726495620266,50.0,132.04,132.01,0.2578488]
[1726495620267,50.0,132.06,132.05,26.505]
[1726495620655,50.0,132.06,132.05,18.9322]
[1726495620862,50.0,132.04,132.03,7.5734]
[1726495621467,50.0,132.06,132.03,7.5734]
[1726495621677,50.0,132.06,132.05,7.5728]
[1726495622212,50.0,132.06,132.04,18.9325]
[1726495622213,20.0,132.07,132.06,7.5723]
[1726495623879,50.0,132.06,132.05,7.5728]
[1726495626878,50.0,132.06,132.04,26.5058]
[1726495627258,50.0,132.06,132.05,7.5728]
[1726495630381,50.0,132.06,132.04,18.9325]
[1726495630873,50.0,132.06,132.04,26.5058]
[1726495631080,50.0,132.04,132.03,7.5738]
[1726495631294,50.0,132.02,132.01,19.1950488]
[1726495631474,50.0,132.02,132.01,0.2578488]
[1726495632279,70.0,132.02,132.01,0.2578488]
[1726495633284,70.0,132.02,132.01,7.8329488]
[1726495635735,70.0,132.02,132.01,0.2578488]
[1726495635895,70.0,132.02,131.97,26.7780488]
[1726495635896,50.0,131.98,131.97,26.7780488]
[1726495637158,50.0,131.98,131.97,0.2578488]
[1726495637410,70.0,131.98,131.97,0.2578488]
[1726495639394,70.0,131.98,131.97,7.8352488]
[1726495639561,70.0,131.98,131.97,0.2578488]
[1726495641585,70.0,131.98,131.97,7.8352488]
[1726495641760,50.0,131.98,131.97,7.8352488]
[1726495642790,70.0,131.98,131.97,0.2578488]
[1726495643089,70.0,131.98,131.93,44.6937488]
[1726495643090,70.0,131.98,131.93,0.2578488]
[1726495643091,50.0,131.95,131.93,0.2578488]
[1726495643268,50.0,131.95,131.93,7.8371488]
[1726495643703,57.5804,131.92,131.87,16.0303]
[1726495644000,20.0,131.91,131.9,0.1417944]
[1726495644305,20.0,131.91,131.9,7.7232944]
[1726495645406,70.0,131.92,131.91,7.5809]
[1726495645566,50.0,131.92,131.91,7.5809]
[1726495646698,70.0,131.94,131.93,7.5797]
[1726495648900,70.0,131.94,131.92,18.9506]
[1726495649590,50.0,131.91,131.9,7.7227944]
[1726495651795,50.0,131.93,131.91,7.5804]
[1726495652204,50.0,131.93,131.92,7.5803]
[1726495654107,50.0,131.91,131.9,19.0943944]
[1726495654614,50.0,131.91,131.9,26.6758944]
[1726495655867,70.0,131.93,131.92,7.5803]
[1726495656401,50.0,131.93,131.92,7.5803]
[1726495656618,31.68160691,131.99,131.94,26.5272]
[1726495656619,50.0,131.95,131.94,26.5272]
[1726495657288,50.0,131.97,131.95,7.5784]
[1726495658190,50.0,131.99,131.96,18.9443]
[1726495658600,50.1350576,132.01,131.94,6.28]
[1726495658909,50.1350576,132.01,132.0,7.5757]
[1726495659371,0.1350576,132.01,132.0,7.5757]
[1726495660309,0.1350576,132.01,132.0,31.13623565]
[1726495661488,0.276852,132.05,132.04,26.507]
[1726495662286,0.276852,132.05,132.04,64.3743]
[1726495663010,0.276852,132.05,132.04,26.507]
[1726495663514,0.276852,132.05,132.03,7.5739]
[1726495663515,50.276852,132.05,132.03,7.5739]
[1726495663814,50.276852,132.05,132.04,7.5734]
[1726495664317,0.276852,132.05,132.04,7.5734]
[1726495676337,0.276852,132.05,132.03,18.934]
[1726495676537,0.276852,132.05,132.04,7.5734]
[1726495676828,50.276852,132.05,132.04,7.5734]
[1726495677409,0.276852,132.05,132.04,7.5734]
[1726495679415,0.276852,132.05,132.04,45.4407]
[1726495679626,0.276852,132.05,132.04,53.6125114]
[1726495679627,5.2e-05,132.05,132.04,53.6125114]
[1726495679832,5.2e-05,132.05,132.04,89.7807114]
[1726495680008,0.276852,132.1,132.09,26.4969]
[1726495681830,0.276852,132.1,132.09,47.6887]
[1726495685921,0.276852,132.1,132.09,26.4969]
[1726495694243,5.2e-05,132.1,132.09,26.4969]
[1726495694550,5.2e-05,132.1,132.09,52.8513]
[1726495694720,0.276852,132.14,132.09,52.8513]
[1726495694721,0.276852,132.14,132.13,64.3305]
[1726495695329,0.276852,132.14,132.13,84.3305]
[1726495695731,50.0,132.21,132.2,26.4749]
[1726495695923,50.2424434,132.21,132.2,26.4749]
[1726495697254,50.2424434,132.21,132.2,18.9107]
[1726495697852,50.0,132.19,132.18,7.5653]
[1726495699134,50.0,132.19,132.17,26.48]
[1726495701048,50.0,132.19,132.18,7.5654]
[1726495701424,50.2424434,132.21,132.19,7.5648]
[1726495701973,50.2424434,132.21,132.2,7.5642]
[1726495703230,0.2424434,132.21,132.2,7.5642]
[1726495703432,50.2424434,132.21,132.2,7.5642]
[1726495704754,0.2424434,132.21,132.2,7.5642]
[1726495704926,0.2424434,132.21,132.2,9.07697861]
[1726495705442,0.2424434,132.21,132.2,7.5642]
[1726495713856,0.2424434,132.21,132.2,45.3856]
[1726495722876,0.2424434,132.21,132.2,7.5642]
[1726495725474,0.2424434,132.21,132.19,26.4763]
[1726495726360,0.2424434,132.21,132.2,7.5642]
[1726495739462,50.2424434,132.21,132.19,26.4763]
[1726495739679,50.2424434,132.21,132.17,7.5655]
[1726495739680,50.0,132.19,132.17,7.5655]
[1726495739984,50.0,132.19,132.13,18.9206]
[1726495739985,20.0,132.18,132.13,18.9206]
[1726495740166,20.0,132.18,132.15,7.5666]
[1726495740479,20.2424434,132.18,132.17,7.566]
[1726495740680,0.2424434,132.18,132.17,7.566]
[1726495751063,0.2424434,132.18,132.16,7.5664]
[1726495751263,50.2424434,132.18,132.15,18.917]
[1726495751509,50.0,132.16,132.15,18.917]
[1726495751675,0.2424434,132.18,132.17,7.566]
[1726495757166,50.2424434,132.18,132.16,26.4823]
[1726495757364,50.2424434,132.18,132.16,18.9158]
[1726495757599,50.2820736,132.18,132.16,18.9158]
[1726495758094,50.0,132.16,132.11,53.5783]
[1726495758296,50.0,132.16,132.14,7.5676]
[1726495758967,16.5476736,132.18,132.11,7.5693]
[1726495758968,50.0,132.12,132.11,7.5693]
[1726495758981,50.0,132.14,132.12,7.5684]
[1726495759293,50.0,132.14,132.1,18.9243]
[1726495759294,50.0,132.12,132.11,7.5693]
[1726495760073,50.0,132.14,132.12,7.5687]
[1726495762076,50.0,132.12,132.11,7.5693]
[1726495763168,50.0,132.1,132.07,18.9289]
[1726495763586,50.0,132.08,132.07,18.9289]
[1726495763793,50.0,132.08,132.04,19.160405]
[1726495763966,50.0,132.08,132.06,7.5722]
[1726495765084,50.0,132.06,132.05,7.5727]
[1726495765293,50.0,132.06,132.04,26.733405]
[1726495766601,20.0,132.05,132.04,0.227405]
[1726495769409,20.0,132.05,132.04,7.800805]
[1726495770806,50.0,132.06,132.05,7.5728]
[1726495771114,70.0,132.06,132.05,7.5728]
[1726495771719,70.0,132.06,132.04,7.800705]
[1726495772111,70.0,132.06,132.04,0.227405]
[1726495772305,20.0,132.05,132.04,0.227405]
[1726495774418,20.0,132.05,132.04,7.800805]
[1726495775193,50.0,132.06,132.05,7.5728]
[1726495776418,70.0,132.06,132.05,7.5728]
[1726495776793,50.0,132.06,132.05,7.5728]
[1726495776995,50.0,132.08,132.07,7.5717]
[1726495778019,70.0,132.08,132.07,7.5717]
[1726495779016,20.0,132.07,132.06,26.5026]
[1726495780825,20.0,132.07,132.06,18.9303]
[1726495782918,50.0,132.06,132.05,7.5727]
[1726495784907,35.0847,132.05,132.04,0.227405]
[1726495785119,35.0847,132.05,132.0,0.2547393]
[1726495785120,70.0,132.02,132.01,7.5747]
[1726495785611,20.0,132.01,132.0,7.8303393]
[1726495790354,20.0,132.01,132.0,0.2547393]
[1726495791301,27.5751,132.01,132.0,0.2547393]
[1726495792717,27.5751,132.01,131.96,19.1991393]
[1726495792718,50.0,131.98,131.96,26.7771393]
[1726495792921,50.0,131.98,131.97,7.5774]
[1726495794114,50.0,131.98,131.96,26.7770393]
[1726495794319,50.0,131.98,131.96,19.1991393]
[1726495795329,50.0,131.98,131.96,26.7769393]